[Event "November 21 Early 2023"]
[Site "https://www.chess.com"]
[Date "2023.11.21"]
[Round "3"]
[White "Shuvalov, Evgenij"]
[Black "Szpar, Milosz"]
[Result "0-1"]
[Board "47"]
[TimeControl "180+1"]
[WhiteFideId "4187237"]
[BlackFideId "1184989"]
[WhiteElo "2059"]
[BlackElo "2446"]
[WhiteTeam "FID"]
[BlackTeam "POL"]
[WhiteClock "0:00:09"]
[BlackClock "0:00:17"]

1. d4 {[%clk 0:03:00]}  Nf6 {[%clk 0:02:59]} 2. c4 {[%clk 0:03:00]}  c5 {[%clk 0:02:59]} 3. Nf3 {[%clk 0:02:59]}  cxd4 {[%clk 0:02:57]} 4. Nxd4 {[%clk 0:03:00]}  e5 {[%clk 0:02:50]} 5. Nb5 {[%clk 0:03:00]}  d5 {[%clk 0:02:50]} 6. cxd5 {[%clk 0:03:01]}  Bc5 {[%clk 0:02:50]} 7. e3 {[%clk 0:02:56]}  O-O {[%clk 0:02:50]} 8. g3 {[%clk 0:02:55]}  e4 {[%clk 0:02:46]} 9. N5c3 {[%clk 0:02:53]}  Re8 {[%clk 0:02:43]} 10. a3 {[%clk 0:02:47]}  Nbd7 {[%clk 0:02:33]} 11. Bg2 {[%clk 0:02:43]}  Ne5 {[%clk 0:02:17]} 12. Nxe4 {[%clk 0:02:11]}  Bg4 {[%clk 0:02:17]} 13. Nxf6+ {[%clk 0:01:48]}  Qxf6 {[%clk 0:02:17]} 14. Qc2 {[%clk 0:01:35]}  Bf5 {[%clk 0:01:46]} 15. Qc3 {[%clk 0:00:52]}  Nd3+ {[%clk 0:01:25]} 16. Kf1 {[%clk 0:00:40]}  Bd4 {[%clk 0:01:22]} 17. exd4 {[%clk 0:00:32]}  Re1+ {[%clk 0:01:16]} 18. Qxe1 {[%clk 0:00:32]}  Nxe1 {[%clk 0:01:16]} 19. Kxe1 {[%clk 0:00:33]}  Qxd4 {[%clk 0:01:13]} 20. Nc3 {[%clk 0:00:25]}  Re8+ {[%clk 0:00:42]} 21. Be3 {[%clk 0:00:25]}  Rxe3+ {[%clk 0:00:43]} 22. fxe3 {[%clk 0:00:25]}  Qxe3+ {[%clk 0:00:43]} 23. Ne2 {[%clk 0:00:15]}  Bg4 {[%clk 0:00:36]} 24. Bf1 {[%clk 0:00:16]}  Bf3 {[%clk 0:00:35]} 25. Rc1 {[%clk 0:00:15]}  g5 {[%clk 0:00:23]} 26. Rc3 {[%clk 0:00:15]}  Qe4 {[%clk 0:00:22]} 27. Rxf3 {[%clk 0:00:15]}  Qxf3 {[%clk 0:00:22]} 28. Rg1 {[%clk 0:00:16]}  Qxd5 {[%clk 0:00:22]} 29. Kf2 {[%clk 0:00:15]}  Qd2 {[%clk 0:00:21]} 30. Bg2 {[%clk 0:00:15]}  Qxb2 {[%clk 0:00:21]} 31. Rd1 {[%clk 0:00:14]}  Qxa3 {[%clk 0:00:18]} 32. Rd7 {[%clk 0:00:14]}  Qc5+ {[%clk 0:00:18]} 33. Kf1 {[%clk 0:00:13]}  Qf5+ {[%clk 0:00:17]} 34. Kg1 {[%clk 0:00:09]}  Qxd7 {[%clk 0:00:17]} 0-1

[Event "November 21 Early 2023"]
[Site "https://www.chess.com"]
[Date "2023.11.21"]
[Round "3"]
[White "Jimenez Almeida, Luis David"]
[Black "Kravtsiv, Martyn"]
[Result "0-1"]
[Board "48"]
[TimeControl "180+1"]
[WhiteFideId "22242244"]
[BlackFideId "14113147"]
[WhiteElo "2216"]
[BlackElo "2689"]
[WhiteTeam "ESP"]
[BlackTeam "UKR"]
[WhiteClock "0:02:34"]
[BlackClock "0:02:08"]

1. e4 {[%clk 0:03:00]}  e5 {[%clk 0:02:59]} 2. Nf3 {[%clk 0:03:00]}  Nc6 {[%clk 0:03:00]} 3. Bb5 {[%clk 0:03:00]}  a6 {[%clk 0:03:00]} 4. Ba4 {[%clk 0:03:00]}  Nf6 {[%clk 0:03:00]} 5. O-O {[%clk 0:03:00]}  Be7 {[%clk 0:03:01]} 6. d3 {[%clk 0:03:00]}  b5 {[%clk 0:03:01]} 7. Bb3 {[%clk 0:03:00]}  O-O {[%clk 0:03:02]} 8. c3 {[%clk 0:03:00]}  d6 {[%clk 0:03:01]} 9. Nbd2 {[%clk 0:03:00]}  Kh8 {[%clk 0:03:01]} 10. Re1 {[%clk 0:03:00]}  Be6 {[%clk 0:02:54]} 11. Nf1 {[%clk 0:02:56]}  Bxb3 {[%clk 0:02:49]} 12. axb3 {[%clk 0:02:56]}  Ng8 {[%clk 0:02:28]} 13. d4 {[%clk 0:02:48]}  exd4 {[%clk 0:02:22]} 14. Nxd4 {[%clk 0:02:49]}  Nxd4 {[%clk 0:02:17]} 15. Qxd4 {[%clk 0:02:50]}  Bf6 {[%clk 0:02:12]} 16. Qd3 {[%clk 0:02:48]}  Qd7 {[%clk 0:02:09]} 17. Ne3 {[%clk 0:02:43]}  Ne7 {[%clk 0:02:08]} 18. Ng4 {[%clk 0:02:34]}  Qxg4 {[%clk 0:02:08]} 0-1

[Event "November 21 Early 2023"]
[Site "https://www.chess.com"]
[Date "2023.11.21"]
[Round "3"]
[White "Idani, Pouya"]
[Black "Shubenkova, Veronika"]
[Result "1-0"]
[Board "49"]
[TimeControl "180+1"]
[WhiteFideId "12510130"]
[BlackFideId "44124040"]
[WhiteElo "2574"]
[BlackElo "1967"]
[WhiteTeam "IRI"]
[BlackTeam "RUS"]
[WhiteClock "0:00:26"]
[BlackClock "0:00:00"]

1. e4 {[%clk 0:02:59]}  e6 {[%clk 0:03:00]} 2. d4 {[%clk 0:02:59]}  d5 {[%clk 0:03:00]} 3. e5 {[%clk 0:03:00]}  c5 {[%clk 0:03:00]} 4. c3 {[%clk 0:03:00]}  Nc6 {[%clk 0:03:01]} 5. Nf3 {[%clk 0:03:01]}  cxd4 {[%clk 0:03:01]} 6. cxd4 {[%clk 0:03:01]}  Qb6 {[%clk 0:03:02]} 7. Nc3 {[%clk 0:02:56]}  Bd7 {[%clk 0:03:02]} 8. a3 {[%clk 0:02:46]}  Rc8 {[%clk 0:03:02]} 9. Na4 {[%clk 0:02:39]}  Qd8 {[%clk 0:02:53]} 10. Bd3 {[%clk 0:02:30]}  Nge7 {[%clk 0:02:43]} 11. O-O {[%clk 0:02:27]}  Nf5 {[%clk 0:02:43]} 12. Be3 {[%clk 0:02:21]}  Be7 {[%clk 0:02:41]} 13. b4 {[%clk 0:02:15]}  Nxe3 {[%clk 0:02:41]} 14. fxe3 {[%clk 0:02:15]}  O-O {[%clk 0:02:41]} 15. Rc1 {[%clk 0:02:05]}  f6 {[%clk 0:02:30]} 16. exf6 {[%clk 0:02:03]}  Rxf6 {[%clk 0:02:30]} 17. Nc5 {[%clk 0:01:59]}  Bxc5 {[%clk 0:02:28]} 18. dxc5 {[%clk 0:01:54]}  Be8 {[%clk 0:02:02]} 19. b5 {[%clk 0:01:36]}  Ne7 {[%clk 0:02:01]} 20. Qd2 {[%clk 0:01:21]}  Ng6 {[%clk 0:01:58]} 21. a4 {[%clk 0:01:16]}  Qe7 {[%clk 0:01:55]} 22. Bxg6 {[%clk 0:01:10]}  Bxg6 {[%clk 0:01:53]} 23. Qd4 {[%clk 0:01:11]}  Rcf8 {[%clk 0:01:44]} 24. c6 {[%clk 0:01:02]}  bxc6 {[%clk 0:01:44]} 25. bxc6 {[%clk 0:01:02]}  Be4 {[%clk 0:01:42]} 26. c7 {[%clk 0:00:58]}  Rc8 {[%clk 0:01:32]} 27. Qxa7 {[%clk 0:00:57]}  Bxf3 {[%clk 0:01:29]} 28. Qb7 {[%clk 0:00:57]}  Rff8 {[%clk 0:00:17]} 29. Rxf3 {[%clk 0:00:56]}  Qa3 {[%clk 0:00:16]} 30. Rxf8+ {[%clk 0:00:31]}  Qxf8 {[%clk 0:00:16]} 31. a5 {[%clk 0:00:30]}  h6 {[%clk 0:00:16]} 32. a6 {[%clk 0:00:29]}  Kh7 {[%clk 0:00:16]} 33. Qxc8 {[%clk 0:00:28]}  Qxc8 {[%clk 0:00:15]} 34. a7 {[%clk 0:00:28]}  d4 {[%clk 0:00:09]} 35. exd4 {[%clk 0:00:29]}  Qb7 {[%clk 0:00:02]} 36. c8=Q {[%clk 0:00:27]}  Qxa7 {[%clk 0:00:02]} 37. Qc5 {[%clk 0:00:27]}  Qa2 {[%clk 0:00:00]} 38. Re1 {[%clk 0:00:26]} 1-0

[Event "November 21 Early 2023"]
[Site "https://www.chess.com"]
[Date "2023.11.21"]
[Round "3"]
[White "Narayanan, Srinath"]
[Black "Nikologorsky, Matfei"]
[Result "1-0"]
[Board "50"]
[TimeControl "180+1"]
[WhiteFideId "5018420"]
[BlackFideId "24102474"]
[WhiteElo "2442"]
[BlackElo "2153"]
[WhiteTeam "IND"]
[BlackTeam "FID"]
[WhiteClock "0:00:30"]
[BlackClock "0:00:10"]

1. Nf3 {[%clk 0:03:00]}  Nf6 {[%clk 0:02:57]} 2. c4 {[%clk 0:03:00]}  e6 {[%clk 0:02:57]} 3. e3 {[%clk 0:02:59]}  b6 {[%clk 0:02:55]} 4. Nc3 {[%clk 0:02:59]}  Bb7 {[%clk 0:02:56]} 5. b3 {[%clk 0:02:59]}  Bb4 {[%clk 0:02:47]} 6. Bb2 {[%clk 0:02:59]}  O-O {[%clk 0:02:47]} 7. Be2 {[%clk 0:02:59]}  d5 {[%clk 0:02:43]} 8. O-O {[%clk 0:02:58]}  Nbd7 {[%clk 0:02:42]} 9. cxd5 {[%clk 0:02:58]}  Nxd5 {[%clk 0:02:41]} 10. Nxd5 {[%clk 0:02:57]}  Bxd5 {[%clk 0:02:40]} 11. Rc1 {[%clk 0:02:58]}  Bd6 {[%clk 0:02:34]} 12. Qc2 {[%clk 0:02:55]}  Nf6 {[%clk 0:02:24]} 13. d3 {[%clk 0:02:56]}  c5 {[%clk 0:02:23]} 14. e4 {[%clk 0:02:55]}  Bf4 {[%clk 0:02:12]} 15. exd5 {[%clk 0:02:36]}  Bxc1 {[%clk 0:02:12]} 16. Qxc1 {[%clk 0:02:28]}  Nxd5 {[%clk 0:02:10]} 17. d4 {[%clk 0:02:28]}  Rc8 {[%clk 0:02:07]} 18. dxc5 {[%clk 0:02:29]}  Rxc5 {[%clk 0:02:06]} 19. Qa1 {[%clk 0:02:29]}  f6 {[%clk 0:02:01]} 20. Ba3 {[%clk 0:02:28]}  Nf4 {[%clk 0:01:54]} 21. Bc4 {[%clk 0:02:21]}  Rh5 {[%clk 0:01:38]} 22. Bxf8 {[%clk 0:02:16]}  Kxf8 {[%clk 0:01:39]} 23. Qc1 {[%clk 0:01:50]}  Qc7 {[%clk 0:01:26]} 24. Rd1 {[%clk 0:01:41]}  g5 {[%clk 0:01:10]} 25. Bf1 {[%clk 0:01:39]}  Qxc1 {[%clk 0:00:57]} 26. Rxc1 {[%clk 0:01:40]}  g4 {[%clk 0:00:58]} 27. Nd2 {[%clk 0:01:30]}  Rd5 {[%clk 0:00:56]} 28. Ne4 {[%clk 0:01:30]}  f5 {[%clk 0:00:57]} 29. g3 {[%clk 0:01:01]}  Ng6 {[%clk 0:00:34]} 30. Ng5 {[%clk 0:00:57]}  Ke7 {[%clk 0:00:32]} 31. Nxh7 {[%clk 0:00:46]}  Ne5 {[%clk 0:00:30]} 32. Be2 {[%clk 0:00:35]}  Rd2 {[%clk 0:00:28]} 33. Kf1 {[%clk 0:00:36]}  Kd6 {[%clk 0:00:10]} 34. Rd1 {[%clk 0:00:30]} 1-0

[Event "November 21 Early 2023"]
[Site "https://www.chess.com"]
[Date "2023.11.21"]
[Round "3"]
[White "Urazayev, Arystanbek"]
[Black "Mohammed, Zozek Salah Mohammed"]
[Result "0-1"]
[Board "52"]
[TimeControl "180+1"]
[WhiteFideId "13709810"]
[BlackFideId "4803361"]
[WhiteElo "2405"]
[BlackElo "2211"]
[WhiteTeam "KAZ"]
[BlackTeam "IRQ"]
[WhiteClock "0:00:18"]
[BlackClock "0:00:30"]

1. d4 {[%clk 0:02:56]}  d5 {[%clk 0:02:30]} 2. c4 {[%clk 0:02:55]}  c6 {[%clk 0:02:18]} 3. Nf3 {[%clk 0:02:55]}  Nf6 {[%clk 0:02:12]} 4. e3 {[%clk 0:02:55]}  e6 {[%clk 0:02:11]} 5. Bd3 {[%clk 0:02:54]}  dxc4 {[%clk 0:02:11]} 6. Bxc4 {[%clk 0:02:55]}  Nbd7 {[%clk 0:02:10]} 7. O-O {[%clk 0:02:55]}  b5 {[%clk 0:02:09]} 8. Be2 {[%clk 0:02:55]}  a6 {[%clk 0:02:09]} 9. a4 {[%clk 0:02:55]}  Bd6 {[%clk 0:02:06]} 10. axb5 {[%clk 0:02:51]}  cxb5 {[%clk 0:02:06]} 11. Bxb5 {[%clk 0:02:50]}  O-O {[%clk 0:02:07]} 12. Bd3 {[%clk 0:02:50]}  Bb7 {[%clk 0:02:06]} 13. Nc3 {[%clk 0:02:50]}  e5 {[%clk 0:02:03]} 14. Nxe5 {[%clk 0:02:37]}  Nxe5 {[%clk 0:02:04]} 15. dxe5 {[%clk 0:02:37]}  Bxe5 {[%clk 0:02:04]} 16. Be2 {[%clk 0:02:27]}  Qc7 {[%clk 0:01:59]} 17. h3 {[%clk 0:02:27]}  Rad8 {[%clk 0:01:59]} 18. Qa4 {[%clk 0:02:20]}  Bxc3 {[%clk 0:01:47]} 19. bxc3 {[%clk 0:02:21]}  Qxc3 {[%clk 0:01:47]} 20. Ba3 {[%clk 0:02:11]}  Rfe8 {[%clk 0:01:47]} 21. Bxa6 {[%clk 0:02:10]}  Ra8 {[%clk 0:01:45]} 22. Bb4 {[%clk 0:01:47]}  Qe5 {[%clk 0:01:22]} 23. Qb3 {[%clk 0:00:30]}  Bxa6 {[%clk 0:01:17]} 24. Rfc1 {[%clk 0:00:27]}  Bc4 {[%clk 0:01:06]} 25. Qd1 {[%clk 0:00:20]}  Rxa1 {[%clk 0:01:05]} 26. Rxa1 {[%clk 0:00:20]}  Bd5 {[%clk 0:01:04]} 27. Qf1 {[%clk 0:00:18]}  h5 {[%clk 0:01:02]} 28. Be1 {[%clk 0:00:16]}  Rc8 {[%clk 0:00:59]} 29. Rd1 {[%clk 0:00:16]}  Bc4 {[%clk 0:00:58]} 30. Rc1 {[%clk 0:00:16]}  Bxf1 {[%clk 0:00:53]} 31. Rxc8+ {[%clk 0:00:17]}  Kh7 {[%clk 0:00:52]} 32. Kxf1 {[%clk 0:00:18]}  Qb5+ {[%clk 0:00:50]} 33. Kg1 {[%clk 0:00:18]}  Qb1 {[%clk 0:00:50]} 34. Kf1 {[%clk 0:00:18]}  Qd3+ {[%clk 0:00:49]} 35. Kg1 {[%clk 0:00:19]}  Qd1 {[%clk 0:00:50]} 36. Kf1 {[%clk 0:00:19]}  Ne4 {[%clk 0:00:49]} 37. f3 {[%clk 0:00:19]}  Qd3+ {[%clk 0:00:46]} 38. Kg1 {[%clk 0:00:19]}  Qxe3+ {[%clk 0:00:47]} 39. Kf1 {[%clk 0:00:20]}  Qd3+ {[%clk 0:00:33]} 40. Kg1 {[%clk 0:00:20]}  Qe2 {[%clk 0:00:32]} 41. Rc1 {[%clk 0:00:18]}  Qe3+ {[%clk 0:00:30]} 0-1

[Event "November 21 Early 2023"]
[Site "https://www.chess.com"]
[Date "2023.11.21"]
[Round "3"]
[White "Bordi, Kevin"]
[Black "Hoffmann, Asa"]
[Result "1-0"]
[Board "54"]
[TimeControl "180+1"]
[WhiteFideId "621862"]
[BlackFideId "2001470"]
[WhiteElo "2833"]
[BlackElo "2117"]
[WhiteTeam "MNC"]
[BlackTeam "USA"]
[WhiteClock "0:01:37"]
[BlackClock "0:00:19"]

1. d4 {[%clk 0:03:00]}  Nf6 {[%clk 0:02:53]} 2. Bg5 {[%clk 0:03:00]}  e6 {[%clk 0:02:53]} 3. e4 {[%clk 0:03:00]}  d6 {[%clk 0:02:51]} 4. Nd2 {[%clk 0:02:58]}  Be7 {[%clk 0:02:50]} 5. Bd3 {[%clk 0:02:58]}  b6 {[%clk 0:02:50]} 6. Ngf3 {[%clk 0:02:57]}  Bb7 {[%clk 0:02:50]} 7. O-O {[%clk 0:02:57]}  Nbd7 {[%clk 0:02:50]} 8. Re1 {[%clk 0:02:57]}  e5 {[%clk 0:02:49]} 9. Nf1 {[%clk 0:02:48]}  h6 {[%clk 0:02:46]} 10. Bh4 {[%clk 0:02:42]}  g5 {[%clk 0:02:41]} 11. Bg3 {[%clk 0:02:42]}  g4 {[%clk 0:02:41]} 12. Nh4 {[%clk 0:02:38]}  exd4 {[%clk 0:02:41]} 13. Nf5 {[%clk 0:02:38]}  h5 {[%clk 0:02:24]} 14. Bh4 {[%clk 0:02:32]}  c5 {[%clk 0:02:17]} 15. N1g3 {[%clk 0:02:14]}  Bf8 {[%clk 0:02:08]} 16. Bb5 {[%clk 0:02:00]}  a6 {[%clk 0:01:54]} 17. Bc4 {[%clk 0:01:49]}  Ne5 {[%clk 0:01:51]} 18. Bd5 {[%clk 0:01:47]}  Ra7 {[%clk 0:01:31]} 19. c3 {[%clk 0:01:42]}  Bxd5 {[%clk 0:01:18]} 20. exd5 {[%clk 0:01:41]}  dxc3 {[%clk 0:01:17]} 21. Ne4 {[%clk 0:01:35]}  cxb2 {[%clk 0:00:49]} 22. Nxf6+ {[%clk 0:01:34]}  Qxf6 {[%clk 0:00:44]} 23. Bxf6 {[%clk 0:01:35]}  bxa1=Q {[%clk 0:00:41]} 24. Qxa1 {[%clk 0:01:36]}  Rg8 {[%clk 0:00:32]} 25. Bxe5 {[%clk 0:01:36]}  dxe5 {[%clk 0:00:19]} 26. Qxe5+ {[%clk 0:01:37]} 1-0

[Event "November 21 Early 2023"]
[Site "https://www.chess.com"]
[Date "2023.11.21"]
[Round "3"]
[White "Mejia, Giovanni"]
[Black "mind1mover"]
[Result "0-1"]
[Board "55"]
[TimeControl "180+1"]
[WhiteFideId "5209498"]
[WhiteElo "2075"]
[BlackElo "2889"]
[WhiteTeam "PHI"]
[WhiteClock "0:00:18"]
[BlackClock "0:00:23"]

1. e4 {[%clk 0:02:58]}  c5 {[%clk 0:02:58]} 2. d3 {[%clk 0:02:57]}  d5 {[%clk 0:02:55]} 3. exd5 {[%clk 0:02:56]}  Nf6 {[%clk 0:02:54]} 4. Nc3 {[%clk 0:02:53]}  Nxd5 {[%clk 0:02:49]} 5. Nf3 {[%clk 0:02:52]}  Nxc3 {[%clk 0:02:48]} 6. bxc3 {[%clk 0:02:52]}  g6 {[%clk 0:02:48]} 7. Be3 {[%clk 0:02:34]}  Bg7 {[%clk 0:02:48]} 8. Qd2 {[%clk 0:02:34]}  Qa5 {[%clk 0:02:45]} 9. d4 {[%clk 0:02:31]}  Bg4 {[%clk 0:02:37]} 10. Be2 {[%clk 0:02:20]}  Nc6 {[%clk 0:02:33]} 11. h3 {[%clk 0:02:16]}  cxd4 {[%clk 0:02:30]} 12. Nxd4 {[%clk 0:02:09]}  Bxe2 {[%clk 0:02:28]} 13. Kxe2 {[%clk 0:01:44]}  Rd8 {[%clk 0:02:26]} 14. Ke1 {[%clk 0:01:21]}  O-O {[%clk 0:02:02]} 15. f4 {[%clk 0:01:16]}  e5 {[%clk 0:01:17]} 16. fxe5 {[%clk 0:01:15]}  Nxe5 {[%clk 0:01:18]} 17. Kf2 {[%clk 0:01:04]}  Nc4 {[%clk 0:01:14]} 18. Qd3 {[%clk 0:01:04]}  Nxe3 {[%clk 0:01:11]} 19. Qxe3 {[%clk 0:01:04]}  Rfe8 {[%clk 0:01:11]} 20. Qd3 {[%clk 0:00:58]}  Rc8 {[%clk 0:00:58]} 21. Rhe1 {[%clk 0:00:50]}  Red8 {[%clk 0:00:54]} 22. Rad1 {[%clk 0:00:27]}  Rxc3 {[%clk 0:00:49]} 23. Qe4 {[%clk 0:00:18]}  Qb6 {[%clk 0:00:23]} 0-1

[Event "November 21 Early 2023"]
[Site "https://www.chess.com"]
[Date "2023.11.21"]
[Round "3"]
[White "Sjugirov, Sanan"]
[Black "Manukyan, Sargis A."]
[Result "1-0"]
[Board "56"]
[TimeControl "180+1"]
[WhiteFideId "4189302"]
[BlackFideId "13303970"]
[WhiteElo "2569"]
[BlackElo "2204"]
[WhiteTeam "HUN"]
[BlackTeam "ARM"]
[WhiteClock "0:00:06"]
[BlackClock "0:00:03"]

1. e4 {[%clk 0:03:00]}  c5 {[%clk 0:02:59]} 2. Nf3 {[%clk 0:03:01]}  d6 {[%clk 0:03:00]} 3. d4 {[%clk 0:02:59]}  cxd4 {[%clk 0:03:00]} 4. Nxd4 {[%clk 0:03:00]}  Nf6 {[%clk 0:03:01]} 5. Nc3 {[%clk 0:03:00]}  g6 {[%clk 0:03:01]} 6. Be3 {[%clk 0:03:00]}  Bg7 {[%clk 0:03:02]} 7. f3 {[%clk 0:03:01]}  O-O {[%clk 0:03:02]} 8. Qd2 {[%clk 0:03:02]}  Nc6 {[%clk 0:03:02]} 9. O-O-O {[%clk 0:03:02]}  d5 {[%clk 0:03:03]} 10. exd5 {[%clk 0:03:02]}  Nxd5 {[%clk 0:03:03]} 11. Nxc6 {[%clk 0:03:02]}  bxc6 {[%clk 0:03:03]} 12. Bd4 {[%clk 0:03:03]}  e5 {[%clk 0:02:54]} 13. Bc5 {[%clk 0:03:03]}  Be6 {[%clk 0:02:54]} 14. Ne4 {[%clk 0:03:03]}  Re8 {[%clk 0:02:54]} 15. h4 {[%clk 0:03:03]}  h6 {[%clk 0:02:54]} 16. Bc4 {[%clk 0:03:01]}  Qc7 {[%clk 0:02:54]} 17. Bb3 {[%clk 0:02:44]}  Red8 {[%clk 0:02:52]} 18. h5 {[%clk 0:02:40]}  g5 {[%clk 0:02:49]} 19. g4 {[%clk 0:02:38]}  Nf4 {[%clk 0:02:48]} 20. Qf2 {[%clk 0:02:36]}  Bd5 {[%clk 0:02:48]} 21. Ng3 {[%clk 0:02:07]}  e4 {[%clk 0:02:24]} 22. fxe4 {[%clk 0:01:26]}  Bxb3 {[%clk 0:02:18]} 23. axb3 {[%clk 0:01:27]}  Qe5 {[%clk 0:02:15]} 24. Ba3 {[%clk 0:01:27]}  a5 {[%clk 0:01:48]} 25. Qc5 {[%clk 0:01:07]}  Qe6 {[%clk 0:01:13]} 26. Qf5 {[%clk 0:01:05]}  a4 {[%clk 0:01:03]} 27. Qxe6 {[%clk 0:01:00]}  Nxe6 {[%clk 0:00:47]} 28. Rxd8+ {[%clk 0:00:56]}  Nxd8 {[%clk 0:00:48]} 29. Rd1 {[%clk 0:00:42]}  axb3 {[%clk 0:00:48]} 30. cxb3 {[%clk 0:00:42]}  Ne6 {[%clk 0:00:40]} 31. Nf5 {[%clk 0:00:42]}  Rb8 {[%clk 0:00:37]} 32. Kc2 {[%clk 0:00:41]}  Bf8 {[%clk 0:00:22]} 33. Bxf8 {[%clk 0:00:40]}  Kxf8 {[%clk 0:00:22]} 34. Nxh6 {[%clk 0:00:36]}  Nc5 {[%clk 0:00:21]} 35. Nf5 {[%clk 0:00:35]}  Nxe4 {[%clk 0:00:17]} 36. h6 {[%clk 0:00:34]}  Kg8 {[%clk 0:00:17]} 37. Rd4 {[%clk 0:00:19]}  Nf6 {[%clk 0:00:16]} 38. Rc4 {[%clk 0:00:19]}  Kh7 {[%clk 0:00:14]} 39. b4 {[%clk 0:00:17]}  Rb6 {[%clk 0:00:14]} 40. Kb3 {[%clk 0:00:16]}  Ng8 {[%clk 0:00:13]} 41. Kc3 {[%clk 0:00:10]}  Nxh6 {[%clk 0:00:14]} 42. Ne7 {[%clk 0:00:10]}  f5 {[%clk 0:00:13]} 43. gxf5 {[%clk 0:00:06]}  Kg7 {[%clk 0:00:13]} 44. Nxc6 {[%clk 0:00:05]}  g4 {[%clk 0:00:13]} 45. Ne5 {[%clk 0:00:04]}  Rb5 {[%clk 0:00:12]} 46. Rc7+ {[%clk 0:00:04]}  Kf6 {[%clk 0:00:12]} 47. Nd3 {[%clk 0:00:04]}  Kxf5 {[%clk 0:00:12]} 48. Rc5+ {[%clk 0:00:04]}  Rxc5+ {[%clk 0:00:12]} 49. bxc5 {[%clk 0:00:05]}  g3 {[%clk 0:00:12]} 50. Ne1 {[%clk 0:00:05]}  Ke4 {[%clk 0:00:12]} 51. c6 {[%clk 0:00:05]}  Nf5 {[%clk 0:00:12]} 52. c7 {[%clk 0:00:06]}  Ne7 {[%clk 0:00:12]} 53. Kc4 {[%clk 0:00:05]}  Ke3 {[%clk 0:00:12]} 54. Kc5 {[%clk 0:00:05]}  Kf2 {[%clk 0:00:12]} 55. Nd3+ {[%clk 0:00:05]}  Ke3 {[%clk 0:00:12]} 56. Ne1 {[%clk 0:00:05]}  Kf2 {[%clk 0:00:12]} 57. Kd6 {[%clk 0:00:04]}  Nc8+ {[%clk 0:00:11]} 58. Kd7 {[%clk 0:00:04]}  Na7 {[%clk 0:00:11]} 59. Nd3+ {[%clk 0:00:04]}  Ke3 {[%clk 0:00:11]} 60. Ne1 {[%clk 0:00:04]}  Kf2 {[%clk 0:00:11]} 61. Nd3+ {[%clk 0:00:03]}  Ke2 {[%clk 0:00:11]} 62. Nf4+ {[%clk 0:00:03]}  Kf3 {[%clk 0:00:11]} 63. Nh3 {[%clk 0:00:03]}  Kg2 {[%clk 0:00:10]} 64. Ng5 {[%clk 0:00:04]}  Kf1 {[%clk 0:00:10]} 65. Nf3 {[%clk 0:00:03]}  Kf2 {[%clk 0:00:10]} 66. Nh4 {[%clk 0:00:03]}  Ke3 {[%clk 0:00:10]} 67. b4 {[%clk 0:00:04]}  Kd4 {[%clk 0:00:10]} 68. b5 {[%clk 0:00:04]}  Kc5 {[%clk 0:00:11]} 69. Nf3 {[%clk 0:00:02]}  Kxb5 {[%clk 0:00:11]} 70. Nd4+ {[%clk 0:00:02]}  Kc5 {[%clk 0:00:11]} 71. Nc6 {[%clk 0:00:02]}  Nxc6 {[%clk 0:00:06]} 72. c8=Q {[%clk 0:00:02]}  Kd4 {[%clk 0:00:05]} 73. Qxc6 {[%clk 0:00:03]}  Ke3 {[%clk 0:00:05]} 74. Qg2 {[%clk 0:00:03]}  Kf4 {[%clk 0:00:06]} 75. Ke6 {[%clk 0:00:04]}  Kg4 {[%clk 0:00:06]} 76. Ke5 {[%clk 0:00:05]}  Kh4 {[%clk 0:00:03]} 77. Kf4 {[%clk 0:00:06]} 1-0

[Event "November 21 Early 2023"]
[Site "https://www.chess.com"]
[Date "2023.11.21"]
[Round "3"]
[White "Weetik, Vjacheslav"]
[Black "FREDERICKtheMATE"]
[Result "0-1"]
[Board "61"]
[TimeControl "180+1"]
[WhiteFideId "4153472"]
[WhiteElo "2469"]
[BlackElo "2556"]
[WhiteTeam "RUS"]
[WhiteClock "0:00:00"]
[BlackClock "0:00:23"]

1. e4 {[%clk 0:02:59]}  c5 {[%clk 0:02:59]} 2. d4 {[%clk 0:02:59]}  cxd4 {[%clk 0:02:59]} 3. c3 {[%clk 0:02:59]}  Nf6 {[%clk 0:02:58]} 4. e5 {[%clk 0:02:59]}  Nd5 {[%clk 0:02:58]} 5. Nf3 {[%clk 0:02:59]}  Nc6 {[%clk 0:02:58]} 6. Bc4 {[%clk 0:02:59]}  Nb6 {[%clk 0:02:55]} 7. Bb3 {[%clk 0:02:59]}  d5 {[%clk 0:02:52]} 8. exd6 {[%clk 0:02:59]}  Qxd6 {[%clk 0:02:51]} 9. O-O {[%clk 0:03:00]}  Be6 {[%clk 0:02:51]} 10. Na3 {[%clk 0:02:57]}  Bxb3 {[%clk 0:02:43]} 11. Qxb3 {[%clk 0:02:56]}  e6 {[%clk 0:02:35]} 12. Nb5 {[%clk 0:02:54]}  Qd7 {[%clk 0:02:35]} 13. Nbxd4 {[%clk 0:02:46]}  Nxd4 {[%clk 0:02:33]} 14. Nxd4 {[%clk 0:02:45]}  Bc5 {[%clk 0:02:30]} 15. Rd1 {[%clk 0:02:46]}  O-O {[%clk 0:02:27]} 16. Bf4 {[%clk 0:02:31]}  Rfd8 {[%clk 0:02:13]} 17. Bg5 {[%clk 0:02:21]}  Rdc8 {[%clk 0:01:59]} 18. Rd3 {[%clk 0:02:06]}  Qa4 {[%clk 0:01:55]} 19. Rad1 {[%clk 0:02:02]}  Qxb3 {[%clk 0:01:52]} 20. axb3 {[%clk 0:02:02]}  h6 {[%clk 0:01:52]} 21. Bh4 {[%clk 0:02:00]}  Nd5 {[%clk 0:01:51]} 22. b4 {[%clk 0:01:55]}  Bf8 {[%clk 0:01:31]} 23. Bg3 {[%clk 0:01:54]}  a5 {[%clk 0:01:23]} 24. bxa5 {[%clk 0:01:09]}  Rxa5 {[%clk 0:01:24]} 25. h3 {[%clk 0:01:07]}  b5 {[%clk 0:01:05]} 26. Nf5 {[%clk 0:00:46]}  Ra2 {[%clk 0:01:00]} 27. Rb1 {[%clk 0:00:44]}  b4 {[%clk 0:00:45]} 28. Ne3 {[%clk 0:00:25]}  bxc3 {[%clk 0:00:37]} 29. Nxd5 {[%clk 0:00:15]}  c2 {[%clk 0:00:35]} 30. Rc1 {[%clk 0:00:15]}  exd5 {[%clk 0:00:35]} 31. Be5 {[%clk 0:00:16]}  Bb4 {[%clk 0:00:25]} 32. Rxd5 {[%clk 0:00:12]}  f6 {[%clk 0:00:25]} 33. Bd4 {[%clk 0:00:00]}  Bd2 {[%clk 0:00:23]} 0-1